bitfinex/quotes_BTCUSD_20250124
["timestamp","ask_amount","ask_price","bid_price","bid_amount"]
[1737758174245,0.43704489,105050.0,105040.0,0.0001418]
[1737758179496,0.44380489,105050.0,105040.0,0.0001418]
[1737758188916,0.31603964,105050.0,105040.0,0.0001418]
[1737758189157,0.27119364,105050.0,105040.0,0.1429438]
[1737758189959,0.12840464,105050.0,105040.0,0.1429438]
[1737758190163,0.08330464,105050.0,105040.0,0.1429438]
[1737758190743,0.00450464,105050.0,105040.0,0.1429438]
[1737758193950,0.00034848,105050.0,105040.0,0.1429438]
[1737758195331,0.00034848,105050.0,105040.0,0.15381772]
[1737758199582,0.00034848,105050.0,105040.0,0.1429438]
[1737758202457,0.00034848,105050.0,105040.0,0.31689577]
[1737758202629,0.00034848,105050.0,105040.0,0.41329109]
[1737758208191,0.00034848,105050.0,105040.0,0.43247184]
[1737758215053,0.00034848,105050.0,105040.0,0.58980801]
[1737758217644,0.00034848,105050.0,105040.0,0.59980801]
[1737758218874,0.3204,105060.0,105050.0,0.293489]
[1737758219023,0.32044925,105060.0,105050.0,0.42047246]
[1737758223599,4.925e-05,105060.0,105050.0,0.42047246]
[1737758226682,4.925e-05,105060.0,105050.0,0.43136461]
[1737758231435,4.925e-05,105060.0,105050.0,0.43150641]
[1737758231641,0.00034704,105060.0,105050.0,0.60150641]
[1737758240417,0.00034704,105060.0,105050.0,0.55200641]
[1737758242263,0.00034704,105060.0,105050.0,0.45380641]
[1737758242770,0.00034704,105060.0,105050.0,0.47380641]
[1737758243860,0.00034704,105060.0,105050.0,0.46380641]
[1737758243993,0.00034704,105060.0,105050.0,0.48380641]
[1737758249789,0.00034704,105060.0,105050.0,0.46380641]
[1737758250094,0.00034704,105060.0,105050.0,0.48380641]
[1737758251198,0.00034704,105060.0,105050.0,0.56420641]
[1737758253846,0.00034704,105060.0,105050.0,0.54420641]
[1737758254078,0.00034704,105060.0,105050.0,0.56420641]
[1737758258065,0.00034704,105060.0,105050.0,0.54420641]
[1737758258272,0.00034704,105060.0,105050.0,0.56420641]
[1737758259020,0.00034704,105060.0,105050.0,0.54420641]
[1737758259230,0.00034704,105060.0,105050.0,0.56420641]
[1737758261250,0.00034704,105060.0,105050.0,0.48380641]
[1737758262939,0.00034704,105060.0,105050.0,0.47380641]
[1737758263143,0.00034704,105060.0,105050.0,0.48380641]
[1737758263972,0.00034704,105060.0,105050.0,0.56920715]
[1737758267764,0.00034704,105060.0,105050.0,0.54920715]
[1737758267965,0.00034704,105060.0,105050.0,0.56920715]
[1737758277106,0.00034704,105060.0,105050.0,0.54920715]
[1737758277334,0.00034704,105060.0,105050.0,0.56920715]
[1737758278383,0.00034704,105060.0,105050.0,0.54920715]
[1737758278624,0.00034704,105060.0,105050.0,0.56920715]
[1737758279512,0.08164704,105060.0,105050.0,0.56920715]
[1737758287625,0.08164704,105060.0,105050.0,0.54920715]
[1737758287837,0.08164704,105060.0,105050.0,0.56920715]
[1737758295282,0.08164704,105060.0,105050.0,0.48380641]
[1737758299569,0.0496,105070.0,105060.0,0.175775]
[1737758299769,0.00029758,105080.0,105070.0,0.315761]
[1737758299994,0.00034683,105080.0,105070.0,0.44274446]
[1737758302781,0.08014683,105080.0,105070.0,0.44274446]
[1737758307301,0.08014683,105080.0,105070.0,0.45286309]
[1737758307505,0.08014683,105080.0,105070.0,0.47148836]
[1737758310864,0.12934683,105080.0,105070.0,0.47148836]
[1737758314019,0.12934683,105080.0,105070.0,0.47163016]
[1737758315620,0.44974683,105080.0,105070.0,0.47163016]
[1737758325365,0.44974683,105080.0,105070.0,0.32163016]
[1737758327558,0.12934683,105080.0,105070.0,0.32163016]
[1737758330232,0.12934683,105080.0,105070.0,0.47163016]
[1737758333428,0.44974683,105080.0,105070.0,0.47163016]
[1737758338478,0.40054683,105080.0,105070.0,0.47163016]
[1737758339376,0.08014683,105080.0,105070.0,0.47163016]
[1737758342433,0.00034683,105080.0,105070.0,0.47163016]
[1737758350760,0.00034683,105080.0,105070.0,0.54883016]
[1737758351588,0.00034683,105080.0,105070.0,0.55883016]
[1737758352890,0.05094283,105100.0,105090.0,0.315734]
[1737758353137,0.05094283,105100.0,105090.0,0.41308129]
[1737758353138,0.05099208,105100.0,105090.0,0.41308129]
[1737758357236,0.37139208,105100.0,105090.0,0.42283064]
[1737758360059,0.37139208,105100.0,105090.0,0.42297234]
[1737758360290,0.37168966,105100.0,105090.0,0.42297234]
[1737758361541,0.37168966,105100.0,105090.0,0.44203574]
[1737758362965,0.37168966,105100.0,105090.0,0.47167271]
[1737758367695,0.37168966,105100.0,105090.0,0.55337271]
[1737758369139,0.05128966,105100.0,105090.0,0.55337271]
[1737758374606,0.05128966,105100.0,105090.0,0.60047271]
[1737758400426,0.05128966,105100.0,105090.0,0.51877271]
[1737758405672,0.05128966,105100.0,105090.0,0.59597271]
[1737758412025,0.00034683,105100.0,105090.0,0.59597271]
[1737758435033,0.00034683,105100.0,105090.0,0.59676971]
[1737758444681,0.00489438,105100.0,105090.0,0.59676971]
[1737758451153,0.00476438,105100.0,105090.0,0.59676971]
[1737758459211,0.00021683,105100.0,105090.0,0.59676971]
[1737758472717,0.00021683,105100.0,105090.0,0.59676976]
[1737758473912,0.0045479,105100.0,105090.0,0.59676976]
[1737758474679,0.0045479,105100.0,105090.0,0.62676976]
[1737758474900,0.00021683,105100.0,105090.0,0.62676976]
[1737758477276,0.00029821,105110.0,105100.0,0.306221]
[1737758477511,0.0007908,105110.0,105100.0,0.43320526]
[1737758497347,0.0007908,105110.0,105100.0,0.43334706]
[1737758508242,0.0007908,105110.0,105100.0,0.58334706]
[1737758527925,0.0007908,105110.0,105100.0,0.66890911]
[1737758530668,0.0007908,105110.0,105100.0,0.68890911]
[1737758541108,0.00029821,105120.0,105110.0,0.415266]
[1737758541314,0.00029821,105120.0,105110.0,0.54225026]
[1737758542732,0.00029821,105120.0,105110.0,0.46375026]
[1737758542966,0.00029821,105120.0,105110.0,0.41415026]
[1737758543510,0.00034743,105120.0,105110.0,0.41415026]
[1737758547001,0.00034743,105120.0,105110.0,0.43303943]
[1737758549257,0.00034743,105120.0,105110.0,0.44259502]
[1737758550983,0.00034743,105120.0,105110.0,0.52815707]
[1737758566222,0.00034743,105120.0,105110.0,0.52829887]
[1737758573588,0.12384743,105120.0,105110.0,0.35529887]
[1737758573860,0.12384743,105120.0,105110.0,0.3364097]
[1737758574097,0.12819303,105120.0,105110.0,0.3364097]
[1737758574271,0.28185003,105140.0,105120.0,0.114153]
[1737758574501,0.43408524,105140.0,105120.0,0.266359]
[1737758575229,0.5025892,105140.0,105120.0,0.266359]
[1737758575453,0.5406372,105140.0,105120.0,0.114153]
[1737758575659,0.114144,105130.0,105110.0,0.61119773]
[1737758576098,0.114144,105130.0,105120.0,0.114155]
[1737758577212,0.237644,105130.0,105120.0,0.114155]
[1737758577995,0.0756,105120.0,105110.0,0.30677273]
[1737758578618,0.0756,105120.0,105110.0,0.22121068]
[1737758597230,0.44499779,105130.0,105110.0,0.22121068]
[1737758597443,0.44499779,105130.0,105120.0,0.114155]
[1737758605731,0.39709779,105130.0,105120.0,0.114155]
[1737758607036,0.32069779,105130.0,105120.0,0.114155]
[1737758611659,0.43484179,105130.0,105120.0,0.114155]
[1737758611859,0.32069779,105130.0,105120.0,0.114155]
[1737758612367,0.43484179,105130.0,105120.0,0.114155]
[1737758612787,0.32069779,105130.0,105120.0,0.114155]
[1737758614165,0.32069779,105130.0,105120.0,0.1142967]
[1737758616243,0.32069779,105130.0,105120.0,0.14396792]
[1737758616465,0.32069779,105130.0,105120.0,0.1142967]
[1737758619265,0.32069779,105130.0,105120.0,0.1242567]
[1737758626697,0.32069779,105130.0,105120.0,0.2048567]
[1737758628002,0.32069779,105130.0,105120.0,0.23454649]
[1737758630532,0.32069779,105130.0,105120.0,0.2048567]
[1737758630666,0.32069779,105130.0,105120.0,0.23451153]
[1737758631325,0.32069779,105130.0,105120.0,0.2048567]
[1737758633941,0.32069779,105130.0,105120.0,0.2540567]
[1737758634963,0.32069779,105130.0,105120.0,0.28371235]
[1737758635259,0.32069779,105130.0,105120.0,0.38105964]
[1737758641125,0.32069779,105130.0,105120.0,0.40025672]
[1737758641357,0.32069779,105130.0,105120.0,0.37060107]
[1737758642273,0.32069779,105130.0,105120.0,0.4002408]
[1737758642482,0.32069779,105130.0,105120.0,0.37060107]
[1737758642703,0.32069779,105130.0,105120.0,0.40024044]
[1737758643074,0.32069779,105130.0,105120.0,0.37060107]
[1737758645047,0.32069779,105130.0,105120.0,0.4002409]
[1737758650592,0.32069779,105130.0,105120.0,0.37060107]
[1737758652997,0.32069779,105130.0,105120.0,0.40024682]
[1737758663665,0.32069779,105130.0,105120.0,0.38104974]
[1737758678401,0.32069779,105130.0,105120.0,0.55404974]
[1737758678402,0.00029779,105130.0,105120.0,0.55404974]
[1737758679426,0.00029779,105130.0,105120.0,0.88654974]
[1737758682042,0.00029779,105130.0,105120.0,0.97211179]
[1737758684615,9.8e-06,105140.0,105130.0,0.448744]
[1737758684823,9.8e-06,105140.0,105130.0,0.57573704]
[1737758690099,9.8e-06,105140.0,105130.0,0.89823704]
[1737758690594,9.8e-06,105140.0,105130.0,0.98379909]
[1737758691664,0.00026759,105150.0,105140.0,0.428133]
[1737758691876,0.00026759,105150.0,105140.0,0.55512604]
[1737758696097,0.00026759,105150.0,105140.0,0.87762604]
[1737758696892,0.00026759,105150.0,105140.0,0.91762604]
[1737758698401,5.9e-07,105150.0,105140.0,0.91762604]
[1737758700801,5.9e-07,105150.0,105140.0,0.92346196]
[1737758705151,0.40179396,105190.0,105180.0,0.11409]
[1737758705369,0.40194166,105190.0,105180.0,0.21143729]
[1737758707378,0.40223945,105190.0,105180.0,0.21143729]
[1737758712608,0.40223945,105190.0,105180.0,0.23007017]
[1737758713519,0.40223945,105190.0,105180.0,0.23949447]
[1737758718421,0.40223945,105190.0,105180.0,0.26908548]
[1737758718663,0.32073945,105190.0,105180.0,0.26908548]
[1737758719278,0.00044549,105190.0,105180.0,0.26908548]
[1737758729817,0.57079508,105200.0,105180.0,0.57331848]
[1737758730315,0.57079508,105200.0,105180.0,0.57346018]
[1737758730513,0.00029758,105190.0,105180.0,0.42134118]
[1737758730885,0.00029758,105190.0,105180.0,0.26922718]
[1737758731729,0.00029758,105190.0,105180.0,0.34612718]
[1737758731972,0.00029758,105190.0,105180.0,0.39152718]
[1737758734046,0.00029758,105190.0,105180.0,0.26922718]
[1737758734253,0.11437658,105190.0,105180.0,0.2505943]
[1737758734454,0.11437658,105190.0,105180.0,0.22100329]
[1737758735174,0.11437658,105190.0,105180.0,0.21157899]
[1737758736266,0.11437658,105190.0,105180.0,0.09748899]
[1737758737071,0.19757658,105190.0,105180.0,0.09748899]
[1737758737694,0.51787054,105190.0,105180.0,0.09748899]
[1737758738321,0.51787054,105190.0,105180.0,0.0001417]
[1737758743611,0.19757658,105190.0,105180.0,0.0001417]
[1737758744992,0.11437658,105190.0,105180.0,0.0001417]
[1737758749331,0.11437658,105190.0,105180.0,0.0782417]
[1737758749538,0.43477658,105190.0,105180.0,0.0782417]
[1737758756577,0.43477658,105190.0,105180.0,0.0001417]
[1737758757552,0.11437658,105190.0,105180.0,0.0001417]
[1737758758097,0.11437658,105190.0,105180.0,0.0824417]
[1737758777320,0.11437658,105190.0,105180.0,0.0001417]
[1737758778522,0.41859658,105190.0,105170.0,0.39657411]
[1737758778731,0.41859658,105190.0,105170.0,0.4940691]
[1737758780532,0.30451758,105190.0,105170.0,0.4940691]
[1737758780772,0.41860558,105190.0,105170.0,0.4940691]
[1737758781017,0.26649258,105190.0,105170.0,0.3419351]
[1737758781224,0.41860558,105190.0,105170.0,0.3419351]
[1737758781585,0.11409,105180.0,105170.0,0.3419351]
[1737758782641,0.41860958,105190.0,105170.0,0.3419351]
[1737758784917,0.26649258,105190.0,105170.0,0.3419351]
[1737758785119,0.41860658,105190.0,105170.0,0.3419351]
[1737758787933,0.41860658,105190.0,105170.0,0.3420768]
[1737758789362,0.41860658,105190.0,105170.0,0.4942108]
[1737758793482,0.26649258,105190.0,105180.0,0.077]
[1737758799998,0.2707334,105190.0,105180.0,0.077]
[1737758801069,0.3087614,105190.0,105180.0,0.077]
[1737758804846,0.2707334,105190.0,105180.0,0.077]
[1737758810961,0.2707334,105190.0,105180.0,0.0771417]
[1737758812363,0.33923736,105190.0,105180.0,0.0771417]
[1737758812628,0.33923736,105190.0,105180.0,0.0001417]
[1737758812882,0.41723736,105190.0,105180.0,0.0001417]
[1737758813799,0.51458465,105190.0,105180.0,0.0001417]
[1737758814037,0.11409,105180.0,105170.0,0.00022735]
[1737758814298,0.25109792,105180.0,105170.0,0.00022735]
[1737758814781,0.35273747,105180.0,105170.0,0.00022735]
[1737758815036,0.43073747,105180.0,105170.0,0.00022735]
[1737758815852,0.43073747,105180.0,105170.0,2.742e-05]
[1737758816055,0.36883351,105180.0,105170.0,2.742e-05]
[1737758817725,0.58733747,105180.0,105170.0,2.742e-05]
[1737758820960,0.58073747,105180.0,105170.0,2.742e-05]
[1737758821812,0.59013839,105180.0,105170.0,2.742e-05]
[1737758822549,0.61013839,105180.0,105170.0,2.742e-05]
[1737758824609,0.114111,105160.0,105150.0,0.1265]
[1737758825081,0.11838384,105160.0,105150.0,0.1265]
[1737758826775,0.11838384,105160.0,105140.0,0.0401418]
[1737758826776,0.114122,105150.0,105140.0,0.0401418]
[1737758827007,0.28657325,105150.0,105140.0,0.0401418]
[1737758827242,0.44081766,105150.0,105140.0,0.0401418]
[1737758831247,0.66162162,105150.0,105140.0,0.0401418]
[1737758832155,0.66621171,105150.0,105140.0,0.0401418]
[1737758833176,0.69067251,105150.0,105140.0,0.0401418]
[1737758835221,0.66621171,105150.0,105140.0,0.0401418]
[1737758835546,0.66621171,105150.0,105140.0,8e-07]
[1737758836390,0.67921171,105150.0,105140.0,8e-07]
[1737758836524,0.70367251,105150.0,105140.0,8e-07]
[1737758836758,0.72266632,105150.0,105140.0,8e-07]
[1737758838882,0.82626283,105150.0,105140.0,8e-07]
[1737758839114,0.72266632,105150.0,105140.0,8e-07]
[1737758839278,0.307133,105140.0,105130.0,6e-07]
[1737758839514,0.75945032,105140.0,105130.0,6e-07]
[1737758839738,0.76404819,105140.0,105130.0,6e-07]
[1737758839948,0.86139548,105140.0,105130.0,6e-07]
[1737758840097,0.37085192,105130.0,105120.0,7e-07]
[1737758840342,0.56094903,105130.0,105120.0,7e-07]
[1737758840626,0.54554676,105130.0,105120.0,4.991e-05]
[1737758841039,0.56554676,105130.0,105120.0,4.991e-05]
[1737758841279,0.69554676,105130.0,105120.0,4.991e-05]
[1737758841720,0.69554676,105130.0,105120.0,9.1e-07]
[1737758843246,0.92120072,105130.0,105120.0,9.1e-07]
[1737758843677,0.92120072,105130.0,105110.0,7.1e-07]
[1737758843678,0.61689347,105120.0,105110.0,7.1e-07]
[1737758843881,0.75984076,105120.0,105110.0,7.1e-07]
[1737758844224,0.76433863,105120.0,105110.0,7.1e-07]
[1737758845049,0.86443863,105120.0,105110.0,7.1e-07]
[1737758846711,0.88369166,105120.0,105110.0,7.1e-07]
[1737758847346,0.90342243,105120.0,105110.0,7.1e-07]
[1737758847909,0.96047243,105120.0,105110.0,7.1e-07]
[1737758848109,0.91294584,105120.0,105110.0,7.1e-07]
[1737758848727,0.294316,105110.0,105100.0,0.00090011]
[1737758848943,0.294316,105110.0,105100.0,0.00094933]
[1737758848944,0.53527121,105110.0,105100.0,0.00094933]
[1737758849122,0.61577443,105110.0,105100.0,0.00094933]
[1737758849887,0.55872443,105110.0,105100.0,0.00094933]
[1737758852738,0.57872443,105110.0,105100.0,0.00094933]
[1737758852940,0.55872443,105110.0,105100.0,0.00094933]
[1737758853586,0.80607172,105110.0,105100.0,0.00094933]
[1737758853929,0.76577443,105110.0,105100.0,3.3e-07]
[1737758855331,0.80384743,105110.0,105100.0,3.3e-07]
[1737758856383,0.73534347,105110.0,105100.0,3.3e-07]
[1737758857885,0.73534347,105110.0,105100.0,2.3e-07]
[1737758858104,0.73564147,105110.0,105100.0,2.3e-07]
[1737758858800,0.80414543,105110.0,105100.0,2.3e-07]
[1737758859023,0.73564147,105110.0,105100.0,2.3e-07]
[1737758859247,0.80414543,105110.0,105100.0,2.3e-07]
[1737758859454,0.83398462,105110.0,105100.0,2.3e-07]
[1737758859659,0.73564147,105110.0,105100.0,2.3e-07]
[1737758860265,0.80414543,105110.0,105100.0,2.3e-07]
[1737758863574,0.64024147,105110.0,105100.0,0.07760023]
[1737758863774,0.64684147,105110.0,105100.0,0.12690023]
[1737758863980,0.71534543,105110.0,105100.0,0.12690023]
[1737758867347,0.61524543,105110.0,105100.0,0.12690023]
[1737758873884,0.72834543,105110.0,105100.0,0.12690023]
[1737758874167,0.72834543,105110.0,105100.0,0.04930023]
[1737758874848,0.65984147,105110.0,105100.0,0.04930023]
[1737758875261,0.72834543,105110.0,105100.0,0.04930023]
[1737758876239,0.314326,105100.0,105090.0,0.0834417]
[1737758876446,0.52868121,105100.0,105090.0,0.08393429]
[1737758876751,0.53358772,105100.0,105090.0,0.08393429]
[1737758878900,0.53358772,105100.0,105090.0,0.00063429]
[1737758880691,0.54358772,105100.0,105090.0,0.00063429]
[1737758880961,0.53358772,105100.0,105090.0,0.00063429]
[1737758881167,0.54358772,105100.0,105090.0,0.00063429]
[1737758881793,0.53358772,105100.0,105090.0,0.00063429]
[1737758882822,0.54358772,105100.0,105090.0,0.00063429]
[1737758883027,0.53358772,105100.0,105090.0,0.00063429]
[1737758883167,0.54358772,105100.0,105090.0,0.00063429]
[1737758884312,0.56238419,105100.0,105090.0,0.00063429]
[1737758885159,0.56238419,105100.0,105090.0,0.08393429]
[1737758885372,0.5718384,105100.0,105090.0,0.08393429]
[1737758887474,0.65694297,105100.0,105090.0,0.08393429]
[1737758889383,0.65203646,105100.0,105090.0,0.08393429]
[1737758891682,0.4704325,105100.0,105090.0,0.13073429]
[1737758891891,0.54549646,105100.0,105090.0,0.13073429]
[1737758892102,0.54579446,105100.0,105090.0,0.13073429]
[1737758895556,0.46068989,105100.0,105090.0,0.13073429]
[1737758897538,0.44068989,105100.0,105090.0,0.13073429]
[1737758897743,0.46068989,105100.0,105090.0,0.13073429]
[1737758900194,0.44068989,105100.0,105090.0,0.13073429]
[1737758900379,0.46068989,105100.0,105090.0,0.13073429]
[1737758907419,0.49875989,105100.0,105090.0,0.13073429]
[1737758907932,0.52175989,105100.0,105090.0,0.13073429]
[1737758908133,0.53175989,105100.0,105090.0,0.13073429]
[1737758908547,0.63185989,105100.0,105090.0,0.13073429]
[1737758909732,0.61185989,105100.0,105090.0,0.13073429]
[1737758912328,0.69696446,105100.0,105090.0,0.13073429]
[1737758919463,0.59686446,105100.0,105090.0,0.13073429]
[1737758920679,0.74686446,105100.0,105090.0,0.13073429]
[1737758927486,0.76686446,105100.0,105090.0,0.13073429]
[1737758927695,0.74686446,105100.0,105090.0,0.13073429]
[1737758943488,0.76686446,105100.0,105090.0,0.13073429]
[1737758943707,0.74686446,105100.0,105090.0,0.13073429]
[1737758964209,0.75102398,105100.0,105090.0,0.13073429]
[1737758966898,0.74446398,105100.0,105090.0,0.13073429]
[1737758967105,0.75102398,105100.0,105090.0,0.13073429]
[1737758982406,0.77102398,105100.0,105090.0,0.13073429]
[1737758982591,0.75102398,105100.0,105090.0,0.13073429]
[1737758985980,0.74446398,105100.0,105090.0,0.13073429]
[1737758986148,0.75102398,105100.0,105090.0,0.13073429]
[1737758987030,0.77102398,105100.0,105090.0,0.13073429]
[1737758988437,0.75102398,105100.0,105090.0,0.13073429]
[1737758991103,0.77102398,105100.0,105090.0,0.13073429]
[1737758991270,0.75102398,105100.0,105090.0,0.13073429]
[1737758996184,0.74686446,105100.0,105090.0,0.13073429]
[1737759006702,0.74686446,105100.0,105090.0,0.04743429]
[1737759010409,0.81536842,105100.0,105090.0,0.04743429]
[1737759011137,0.81536842,105100.0,105090.0,0.12893429]
[1737759011568,0.74686446,105100.0,105090.0,0.12893429]
[1737759016560,0.76686446,105100.0,105090.0,0.12893429]
[1737759016753,0.74686446,105100.0,105090.0,0.12893429]
[1737759016891,0.76686446,105100.0,105090.0,0.12893429]
[1737759017275,0.74686446,105100.0,105090.0,0.12893429]
[1737759017497,0.76686446,105100.0,105090.0,0.12893429]
[1737759017725,0.74686446,105100.0,105090.0,0.12893429]
[1737759017958,0.76686446,105100.0,105090.0,0.12893429]
[1737759018627,0.74686446,105100.0,105090.0,0.12893429]
[1737759019080,0.76686446,105100.0,105090.0,0.12893429]
[1737759019507,0.74686446,105100.0,105090.0,0.12893429]
[1737759020044,0.76686446,105100.0,105090.0,0.12893429]
[1737759020214,0.74686446,105100.0,105090.0,0.12893429]
[1737759021336,0.76686446,105100.0,105090.0,0.12893429]
[1737759021916,0.74686446,105100.0,105090.0,0.12893429]
[1737759022345,0.81536842,105100.0,105090.0,2.9e-07]
[1737759024737,0.73026385,105100.0,105090.0,2.9e-07]
[1737759028823,0.73026385,105100.0,105090.0,0.00014209]
[1737759032529,0.73026385,105100.0,105090.0,9e-08]
[1737759032906,0.72026385,105100.0,105090.0,9e-08]
[1737759044482,0.72026385,105100.0,105090.0,0.01900709]
[1737759044641,0.72026385,105100.0,105090.0,9e-08]
[1737759047975,0.80577181,105100.0,105090.0,9e-08]
[1737759052188,0.80577181,105100.0,105090.0,0.00014189]
[1737759052979,0.80577181,105100.0,105090.0,8.9e-07]
[1737759058613,0.72026385,105100.0,105090.0,8.9e-07]
[1737759070538,0.01,105090.0,105080.0,0.10396789]
[1737759070786,0.58859221,105090.0,105080.0,0.04691814]
[1737759072991,0.67419885,105090.0,105080.0,0.04691814]
[1737759073801,0.67419885,105090.0,105080.0,0.09271814]
[1737759075464,0.67419885,105090.0,105080.0,0.09285994]
[1737759086933,0.67449664,105090.0,105080.0,0.09285994]
[1737759087789,0.68101664,105090.0,105080.0,0.09285994]
[1737759091460,0.78111664,105090.0,105080.0,0.09285994]
[1737759091594,0.68101664,105090.0,105080.0,0.09285994]
[1737759097326,0.68101664,105090.0,105080.0,0.07382694]
[1737759097529,0.68101664,105090.0,105080.0,0.01672794]
[1737759097733,0.68101664,105090.0,105080.0,9.4e-07]
[1737759098316,0.67101664,105090.0,105080.0,9.4e-07]
[1737759099232,0.74661664,105090.0,105080.0,9.4e-07]
[1737759103833,0.8151206,105090.0,105080.0,9.4e-07]
[1737759109389,0.55975988,105080.0,105070.0,7.4e-07]
[1737759109723,0.65710717,105080.0,105070.0,7.4e-07]
[1737759111659,0.75720717,105080.0,105070.0,7.4e-07]
[1737759111916,0.65710717,105080.0,105070.0,7.4e-07]
[1737759112835,0.66710717,105080.0,105070.0,7.4e-07]
[1737759113081,0.72920717,105080.0,105070.0,7.4e-07]
[1737759115219,0.81468091,105080.0,105070.0,7.4e-07]
[1737759117122,0.82414474,105080.0,105070.0,7.4e-07]
[1737759117384,0.84296421,105080.0,105070.0,7.4e-07]
[1737759123220,0.287209,105070.0,105060.0,4.4e-07]
[1737759123449,0.287209,105070.0,105060.0,6.9e-07]
[1737759123450,0.66526817,105070.0,105060.0,6.9e-07]
[1737759128711,0.59676421,105070.0,105060.0,6.9e-07]
[1737759128895,0.66526817,105070.0,105060.0,6.9e-07]
[1737759130141,0.75062368,105070.0,105060.0,6.9e-07]
[1737759131302,0.29722,105060.0,105050.0,0.0001418]
[1737759131536,0.60007917,105060.0,105050.0,0.0001418]
[1737759133729,0.60007917,105060.0,105050.0,8e-07]
[1737759133730,0.72480917,105060.0,105050.0,8e-07]
[1737759135368,0.744292,105060.0,105050.0,8e-07]
[1737759136510,0.75383637,105060.0,105050.0,8e-07]
[1737759137090,0.77383637,105060.0,105050.0,8e-07]
[1737759137298,0.75383637,105060.0,105050.0,8e-07]
[1737759138392,0.85403637,105060.0,105050.0,8e-07]
[1737759138636,1.62243637,105060.0,105050.0,8e-07]
[1737759139040,0.294242,105040.0,105030.0,0.0748844]
[1737759139194,0.55811721,105040.0,105030.0,0.07493365]
[1737759139616,0.55811721,105040.0,105030.0,0.12193365]
[1737759141379,0.57621021,105040.0,105030.0,0.12193365]
[1737759143098,0.59621021,105040.0,105030.0,0.12193365]
[1737759143311,0.57621021,105040.0,105030.0,0.12193365]
[1737759143901,0.59559835,105040.0,105030.0,0.12193365]
[1737759144306,0.67272835,105040.0,105030.0,0.12193365]
[1737759145541,0.68249331,105040.0,105030.0,0.12193365]
[1737759147085,0.68249331,105040.0,105030.0,0.12207545]
[1737759152041,0.68249331,105040.0,105030.0,0.04719105]
[1737759155344,0.68249331,105040.0,105030.0,0.00019105]
[1737759159413,0.75099727,105040.0,105030.0,0.00019105]
[1737759159745,0.68249331,105040.0,105030.0,0.00019105]
[1737759159950,0.74099727,105040.0,105030.0,0.00019105]
[1737759160363,0.67249331,105040.0,105030.0,0.00019105]
[1737759160504,0.74129527,105040.0,105030.0,0.00019105]
[1737759161783,0.67279131,105040.0,105030.0,0.00019105]
[1737759162099,0.74129527,105040.0,105030.0,0.00019105]
[1737759162786,0.67279131,105040.0,105030.0,0.00019105]
[1737759163317,0.67701513,105040.0,105030.0,0.00019105]
[1737759163454,0.67279131,105040.0,105030.0,0.00019105]
[1737759164279,0.81819527,105040.0,105030.0,0.00019105]
[1737759164483,0.364383,105030.0,105020.0,8.5e-07]
[1737759164707,0.67563821,105030.0,105020.0,8.5e-07]
[1737759166281,1.59274217,105030.0,105020.0,8.5e-07]
[1737759166672,1.52423821,105030.0,105020.0,8.5e-07]
[1737759166842,0.08013,105020.0,105010.0,5.5e-07]
[1737759167055,0.72825217,105020.0,105010.0,5.5e-07]
[1737759168246,0.75493556,105020.0,105010.0,5.5e-07]
[1737759171438,0.72825217,105020.0,105010.0,5.5e-07]
[1737759172244,0.72855017,105020.0,105010.0,5.5e-07]
[1737759173068,0.7477434,105020.0,105010.0,5.5e-07]
[1737759173474,0.7542634,105020.0,105010.0,5.5e-07]
[1737759173702,0.76392194,105020.0,105010.0,5.5e-07]
[1737759174086,0.86126923,105020.0,105010.0,5.5e-07]
[1737759174534,0.76392194,105020.0,105010.0,5.5e-07]
[1737759175157,0.79065473,105020.0,105010.0,5.5e-07]
[1737759181807,0.364404,105010.0,105000.0,6.3e-07]
[1737759182013,1.46735921,105010.0,105000.0,6.3e-07]
[1737759191579,1.47387921,105010.0,105000.0,6.3e-07]
[1737759192627,1.55037921,105010.0,105000.0,6.3e-07]
[1737759195258,1.55067721,105010.0,105000.0,6.3e-07]
[1737759204199,1.54268117,105010.0,105000.0,6.3e-07]
[1737759205009,1.47417721,105010.0,105000.0,6.3e-07]
[1737759206870,1.54268117,105010.0,105000.0,6.3e-07]
[1737759207713,1.47417721,105010.0,105000.0,6.3e-07]
[1737759208335,0.181415,105000.0,104990.0,0.07790243]
[1737759208523,0.43877021,105000.0,104990.0,0.07790243]
[1737759208921,0.50727417,105000.0,104990.0,0.07790243]
[1737759209545,0.50727417,105000.0,104990.0,0.07804316]
[1737759209753,0.43877021,105000.0,104990.0,0.07804316]
[1737759210624,0.50727417,105000.0,104990.0,0.07804316]
[1737759213910,0.51658637,105000.0,104990.0,0.07804316]
[1737759214426,0.46714585,105000.0,104990.0,0.07804316]
[1737759214633,0.67564981,105000.0,104990.0,0.00024316]
[1737759215478,0.75594981,105000.0,104990.0,1.6e-07]
[1737759217566,0.75594981,105000.0,104990.0,6e-08]
[1737759217770,0.75624781,105000.0,104990.0,6e-08]
[1737759219806,0.76276781,105000.0,104990.0,6e-08]
[1737759222369,0.84771095,105000.0,104990.0,6e-08]
[1737759232201,0.88582595,105000.0,104990.0,6e-08]
[1737759237090,0.124307,104980.0,104970.0,0.0039736]
[1737759237288,0.38166221,104980.0,104970.0,0.00446479]
[1737759240209,0.43879221,104980.0,104970.0,0.08036479]
[1737759241433,0.50729617,104980.0,104970.0,0.08036479]
[1737759241599,0.43879221,104980.0,104970.0,0.08036479]
[1737759243089,0.50729617,104980.0,104970.0,0.08036479]
[1737759243918,0.43879221,104980.0,104970.0,0.08036479]
[1737759244323,0.45879221,104980.0,104970.0,0.08036479]
[1737759244534,0.60879221,104980.0,104970.0,0.00446479]
[1737759245124,0.61830737,104980.0,104970.0,0.00446479]
[1737759245441,0.68681133,104980.0,104970.0,0.00446479]
[1737759245654,0.74641133,104980.0,104970.0,0.00446479]
[1737759246304,0.66681133,104980.0,104970.0,0.00446479]
[1737759246707,0.68681133,104980.0,104970.0,0.00446479]
[1737759246924,0.66681133,104980.0,104970.0,0.00446479]
[1737759247115,0.59830737,104980.0,104970.0,0.00446479]
[1737759247920,0.66681133,104980.0,104970.0,0.00446479]
[1737759250759,0.73841133,104980.0,104970.0,7.9e-07]
[1737759252567,0.65681133,104980.0,104970.0,7.9e-07]
[1737759252875,0.66681133,104980.0,104970.0,7.9e-07]
[1737759253078,0.44967341,104980.0,104970.0,0.12400079]
[1737759253284,0.22768945,104980.0,104970.0,0.12414269]
[1737759253498,0.29649141,104980.0,104970.0,0.12414269]
[1737759253726,0.44649141,104980.0,104970.0,0.12414269]
[1737759254346,0.51499537,104980.0,104970.0,0.12414269]
[1737759255501,0.43997141,104980.0,104970.0,0.12414269]
[1737759255732,0.37798745,104980.0,104970.0,0.12414269]
[1737759256102,0.44649141,104980.0,104970.0,0.12414269]
[1737759261194,0.28064016,104980.0,104970.0,0.12414269]
[1737759263204,0.13064016,104980.0,104970.0,0.12509522]
[1737759263405,0.13064016,104980.0,104970.0,0.12414269]
[1737759264347,0.13064016,104980.0,104970.0,0.12509522]
[1737759264561,0.12412016,104980.0,104970.0,0.12509522]
[1737759264763,0.13064016,104980.0,104970.0,0.12509522]
[1737759268926,0.000298,104980.0,104970.0,0.23941322]
[1737759269083,0.000298,104980.0,104970.0,0.23846069]
[1737759270006,0.000298,104980.0,104970.0,0.33580798]